[Event "POR-ch Amateur 2018"]
[Site "Braga"]
[Date "2018.09.07"]
[Round "2"]
[White "Pacheco, Joao Pedro Lima"]
[Black "Brandao, Bruno Lopes"]
[Result "0-1"]
[ECO "B31"]
[WhiteElo "1084"]
[BlackElo "1711"]
[PlyCount "94"]
[EventDate "2018.09.02"]
[EventType "tourn"]
[EventCountry "POR"]
[TimeControl "40/5400+30:1800+30"]

1. e4 c5 2. Nf3 Nc6 3. Bb5 g6 4. Nc3 Bg7 5. d3 Nd4 6. Be3 Nxb5 7. Nxb5 Qa5+ 8. Nc3 Bxc3+ 9. Bd2 Bxd2+ 10. Nxd2 d6 11. O-O Be6 12. b3 b5 13. h3 Nf6 14. Qe2 Nd7 15. Nf3 O-O 16. Qe3 f6 17. d4 Qb6 18. d5 Bf7 19. Qf4 Ne5 20. Nd2 c4 21. bxc4 Nxc4 22. Nf3 Ne5 23. Nd2 Rfc8 24. Rfc1 Rc3 25. Nb1 Rc5 26. Nd2 Rac8 27. Nf3 Nxf3+ 28. Qxf3 Rxc2 29. Re1 R8c3 30. Qf4 g5 31. Qf5 Bg6 32. Qe6+ Kf8 33. Rf1 Re2 34. Rae1 Rxe1 35. Rxe1 Rc2 36. Rf1 a5 37. Qg4 b4 38. Kh2 Rxf2 39. Qc8+ Be8 40. Rxf2 Qxf2 41. Qc4 Qf4+ 42. Kh1 Qd2 43. Kh2 a4 44. e5 Qf4+ 45. Qxf4 gxf4 46. exf6 exf6 47. Kg1 b3 0-1

[Event "POR-ch Amateur 2018"]
[Site "Braga"]
[Date "2018.09.08"]
[Round "3"]
[White "Duarte Mermow, Marcelo"]
[Black "Pacheco, Joao Pedro Lima"]
[Result "0-1"]
[ECO "C42"]
[WhiteElo "2341"]
[BlackElo "1084"]
[PlyCount "58"]
[EventDate "2018.09.02"]
[EventType "tourn"]
[EventCountry "POR"]
[TimeControl "40/5400+30:1800+30"]

1. e4 e5 2. Nf3 Nf6 3. Bc4 d5 4. exd5 Nxd5 5. Nc3 Nxc3 6. bxc3 Bg4 7. h3 Bh5 8. O-O Bd6 9. Bb2 O-O 10. Bb3 h6 11. c4 Qf6 12. c3 Nc6 13. Bc2 a6 14. Bb1 Rab8 15. Qc2 Bg6 16. d3 Rfe8 17. Nh4 Qf4 18. Nxg6 fxg6 19. f3 e4 20. dxe4 Re6 21. Re1 Qh2+ 22. Kf2 Bc5+ 23. Ke2 Qxg2+ 24. Kd1 Qxf3+ 25. Re2 Rd8+ 26. Ke1 Qg3+ 27. Rf2 Rxe4+ 28. Kf1 Qxh3+ 29. Kg1 Rg4# 0-1

[Event "POR-ch Amateur 2018"]
[Site "Braga"]
[Date "2018.09.08"]
[Round "3"]
[White "Leao, Tiago Miguel Da Sil"]
[Black "Demyanchuk, Sergey"]
[Result "1/2-1/2"]
[ECO "C65"]
[WhiteElo "2084"]
[BlackElo "1818"]
[PlyCount "110"]
[EventDate "2018.09.02"]
[EventType "tourn"]
[EventCountry "POR"]
[TimeControl "40/5400+30:1800+30"]
[WhiteClock "0:34:41"]
[BlackClock "0:13:11"]

1. e4 {[%emt 0:00:00]} e5 {[%emt 0:00:00]} 2. Nf3 {[%emt 0:00:00]} Nc6 {[%emt 0:00:00]} 3. Bb5 {[%emt 0:00:00]} Nf6 {[%emt 0:00:00]} 4. d3 {[%emt 0:00:00]} d6 {[%emt 0:00:57]} 5. c3 {[%emt 0:00:31]} Be7 {[%emt 0:00:16]} 6. O-O {[%emt 0:00:27]} Bg4 {[%emt 0:00:27]} 7. Nbd2 {[%emt 0:00:35]} O-O {[%emt 0:00:50]} 8. Re1 {[%emt 0:01:15]} a6 {[%emt 0:01:36]} 9. Ba4 {[%emt 0:00:36]} h6 {[%emt 0:02:44]} 10. Nf1 {[%emt 0:01:12]} Nh7 {[%emt 0:00:36]} 11. h3 {[%emt 0:00:40]} Bd7 {[%emt 0:01:44]} 12. Ng3 {[%emt 0:01:57]} Bg5 {[%emt 0:00:36]} 13. d4 {[%emt 0:10:13]} b5 {[%emt 0:07:21]} 14. Bc2 {[%emt 0:02:28]} a5 {[%emt 0:02:34]} 15. dxe5 {[%emt 0:05:45]} Nxe5 {[%emt 0:00:21]} 16. Nxe5 {[%emt 0:15:01]} dxe5 {[%emt 0:00:17]} 17. Qe2 {[%emt 0:03:22]} Qe7 {[%emt 0:04:04]} 18. Be3 {[%emt 0:08:24]} Rfd8 {[%emt 0:01:50]} 19. Rad1 {[%emt 0:01:26]} c5 {[%emt 0:01:33]} 20. Nf5 {[%emt 0:02:28]} Bxf5 {[%emt 0:00:24]} 21. exf5 {[%emt 0:02:56]} Bxe3 {[%emt 0:00:26]} 22. Rxd8+ {[%emt 0:01:02]} Rxd8 {[%emt 0:00:34]} 23. Qxe3 {[%emt 0:00:33]} f6 {[%emt 0:06:33]} 24. f4 {[%emt 0:02:13]} Kf7 {[%emt 0:00:36]} 25. Bd1 {[%emt 0:02:04]} Qd6 {[%emt 0:07:30]} 26. Bh5+ {[%emt 0:03:37]} Kg8 {[%emt 0:00:13]} 27. Rd1 {[%emt 0:02:20]} Qc7 {[%emt 0:01:32]} 28. Rxd8+ {[%emt 0:01:13]} Qxd8 {[%emt 0:00:09]} 29. fxe5 {[%emt 0:00:36]} fxe5 {[%emt 0:00:11]} 30. Qxe5 {[%emt 0:02:13]} Nf6 {[%emt 0:03:01]} 31. Qxc5 {[%emt 0:03:40]} Nxh5 {[%emt 0:00:22]} 32. Qxb5 {[%emt 0:00:47]} Ng3 {[%emt 0:02:15]} 33. Kh2 {[%emt 0:04:09]} Nh5 {[%emt 0:01:28]} 34. Qe2 {[%emt 0:04:23]} Qd6+ {[%emt 0:02:17]} 35. Kg1 {[%emt 0:00:24]} Qc5+ {[%emt 0:00:22]} 36. Qf2 {[%emt 0:00:21]} Qd5 {[%emt 0:00:37]} 37. Qf3 {[%emt 0:01:58]} Qxf3 {[%emt 0:00:21]} 38. gxf3 {[%emt 0:00:01]} Kf7 {[%emt 0:00:19]} 39. b4 {[%emt 0:00:07]} Nf4 {[%emt 0:00:23]} 40. bxa5 {[%emt 0:00:24]} Ne2+ {[%emt 0:00:12]} 41. Kf2 {[%emt 0:30:08]} Nxc3 {[%emt 0:30:05]} 42. a6 {[%emt 0:00:16]} Nb5 {[%emt 0:01:52]} 43. a4 {[%emt 0:00:10]} Nc7 {[%emt 0:00:04]} 44. a7 {[%emt 0:00:04]} Kf6 {[%emt 0:01:50]} 45. Kg3 {[%emt 0:01:45]} Kxf5 {[%emt 0:00:14]} 46. f4 {[%emt 0:01:47]} g6 {[%emt 0:02:55]} 47. Kf3 {[%emt 0:01:36]} Na8 {[%emt 0:04:07]} 48. Ke3 {[%emt 0:00:39]} Ke6 {[%emt 0:06:01]} 49. Ke4 {[%emt 0:01:28]} Kd6 {[%emt 0:01:22]} 50. Kd4 {[%emt 0:01:21]} Nc7 {[%emt 0:02:57]} 51. Ke4 {[%emt 0:01:07]} Ke6 {[%emt 0:00:15]} 52. Kd4 {[%emt 0:01:06]} Kf5 {[%emt 0:00:44]} 53. Ke3 {[%emt 0:00:14]} Ke6 {[%emt 0:02:33]} 54. Kd4 {[%emt 0:00:29]} Kd6 {[%emt 0:00:07]} 55. Ke4 {[%emt 0:00:48]} Na8 {[%emt 0:00:12]} 1/2-1/2

[Event "POR-ch Amateur 2018"]
[Site "Braga"]
[Date "2018.09.09"]
[Round "3"]
[White "Leao, Tiago Miguel Da Sil"]
[Black "Monteiro, Jose Macedo"]
[Result "1/2-1/2"]
[ECO "C77"]
[WhiteElo "2084"]
[BlackElo "1889"]
[PlyCount "67"]
[EventDate "2018.09.02"]
[EventType "tourn"]
[EventCountry "POR"]
[TimeControl "40/5400+30:1800+30"]
[WhiteClock "0:29:03"]
[BlackClock "0:19:45"]

1. e4 {[%emt 0:00:00]} e5 {[%emt 0:00:04]} 2. Nf3 {[%emt 0:00:00]} Nc6 {[%emt 0:00:20]} 3. Bb5 {[%emt 0:00:00]} a6 {[%emt 0:00:06]} 4. Ba4 {[%emt 0:00:00]} Nf6 {[%emt 0:00:13]} 5. d3 {[%emt 0:00:00]} b5 {[%emt 0:00:24]} 6. Bb3 {[%emt 0:00:02]} Be7 {[%emt 0:00:11]} 7. O-O {[%emt 0:00:07]} d6 {[%emt 0:00:29]} 8. c3 {[%emt 0:00:04]} Na5 {[%emt 0:01:46]} 9. Bc2 {[%emt 0:00:06]} c5 {[%emt 0:00:16]} 10. Re1 {[%emt 0:00:39]} Bd7 {[%emt 0:01:34]} 11. Nbd2 {[%emt 0:03:11]} Qc7 {[%emt 0:00:18]} 12. Nf1 {[%emt 0:01:06]} O-O {[%emt 0:02:19]} 13. Ng3 {[%emt 0:01:23]} Rfe8 {[%emt 0:00:15]} 14. h3 {[%emt 0:12:18]} Bd8 {[%emt 0:09:02]} 15. d4 cxd4 {[%emt 0:00:10]} 16. cxd4 {[%emt 0:02:45]} Rc8 17. Bd3 {[%emt 0:02:12]} Nc6 {[%emt 0:00:44]} 18. dxe5 {[%emt 0:01:22]} dxe5 {[%emt 0:00:32]} 19. b3 {[%emt 0:11:52]} Nb4 {[%emt 0:00:29]} 20. Bb2 {[%emt 0:00:34]} Qb8 {[%emt 0:01:23]} 21. a3 {[%emt 0:01:22]} Nxd3 {[%emt 0:00:27]} 22. Qxd3 {[%emt 0:00:10]} Ba5 {[%emt 0:04:13]} 23. Rec1 {[%emt 0:03:41]} Bc6 {[%emt 0:02:06]} 24. Rc5 {[%emt 0:13:33]} Bxe4 {[%emt 0:23:16]} 25. Nxe4 {[%emt 0:08:00]} Rxc5 {[%emt 0:00:10]} 26. Nxc5 {[%emt 0:01:04]} e4 {[%emt 0:00:12]} 27. Qe2 {[%emt 0:07:24]} exf3 {[%emt 0:07:09]} 28. Qxf3 {[%emt 0:00:36]} Qc8 {[%emt 0:13:41]} 29. b4 {[%emt 0:03:25]} Bd8 {[%emt 0:02:15]} 30. Rc1 {[%emt 0:03:06]} Be7 {[%emt 0:02:48]} 31. Ne4 {[%emt 0:02:11]} Qe6 {[%emt 0:00:13]} 32. Nxf6+ {[%emt 0:04:15]} Bxf6 {[%emt 0:00:09]} 33. Bxf6 {[%emt 0:00:15]} Qxf6 {[%emt 0:00:13]} 34. Qxf6 {[%emt 0:00:32]} 1/2-1/2

[Event "POR-ch Amateur 2018"]
[Site "Braga"]
[Date "2018.09.09"]
[Round "3"]
[White "Pinto, Andre Filipe Silva"]
[Black "Fonseca, Pedro Miguel Ramos"]
[Result "0-1"]
[ECO "C50"]
[WhiteElo "2002"]
[BlackElo "1393"]
[PlyCount "134"]
[EventDate "2018.09.02"]
[EventType "tourn"]
[EventCountry "POR"]
[TimeControl "40/5400+30:1800+30"]
[WhiteClock "0:53:16"]
[BlackClock "0:45:53"]

1. e4 e5 2. Nf3 Nc6 3. Bc4 {[%emt 0:01:08]} Bc5 {[%emt 0:00:34]} 4. d3 {[%emt 0:00:10]} Nf6 {[%emt 0:00:04]} 5. O-O {[%emt 0:00:14]} d6 {[%emt 0:00:11]} 6. h3 {[%emt 0:00:08]} h6 {[%emt 0:00:09]} 7. Nc3 {[%emt 0:00:11]} a6 {[%emt 0:00:11]} 8. Qe1 {[%emt 0:01:44]} O-O {[%emt 0:01:33]} 9. Be3 {[%emt 0:00:57]} Ba7 {[%emt 0:00:34]} 10. a3 {[%emt 0:00:50]} Ne7 {[%emt 0:01:09]} 11. Bxa7 {[%emt 0:01:25]} Rxa7 {[%emt 0:00:11]} 12. Qe3 {[%emt 0:00:13]} Ra8 {[%emt 0:00:56]} 13. Rab1 {[%emt 0:02:54]} Be6 {[%emt 0:01:13]} 14. Nd2 {[%emt 0:02:05]} Ng6 {[%emt 0:00:55]} 15. Ne2 {[%emt 0:00:25]} b5 {[%emt 0:04:50]} 16. Bxe6 {[%emt 0:01:15]} fxe6 {[%emt 0:00:08]} 17. f4 {[%emt 0:00:19]} exf4 {[%emt 0:02:01]} 18. Nxf4 {[%emt 0:00:28]} Nxf4 {[%emt 0:01:24]} 19. Qxf4 {[%emt 0:01:22]} c6 {[%emt 0:02:19]} 20. e5 {[%emt 0:00:46]} Qb6+ {[%emt 0:00:24]} 21. Kh1 {[%emt 0:00:41]} Nd7 {[%emt 0:06:05]} 22. Qg4 {[%emt 0:00:58]} Rf5 {[%emt 0:03:52]} 23. Rxf5 {[%emt 0:01:56]} exf5 {[%emt 0:00:12]} 24. Qxf5 {[%emt 0:00:13]} Nxe5 {[%emt 0:00:38]} 25. Qe6+ {[%emt 0:00:48]} Nf7 {[%emt 0:00:14]} 26. Ne4 {[%emt 0:00:17]} Qc7 {[%emt 0:02:13]} 27. Rf1 {[%emt 0:03:32]} Rd8 {[%emt 0:01:41]} 28. Nxd6 {[%emt 0:02:26]} Rxd6 {[%emt 0:01:35]} 29. Qe8+ {[%emt 0:00:05]} Kh7 {[%emt 0:00:07]} 30. Qxf7 {[%emt 0:00:11]} Qxf7 {[%emt 0:03:55]} 31. Rxf7 {[%emt 0:00:11]} Re6 {[%emt 0:00:12]} 32. Rf2 {[%emt 0:00:12]} Kg6 {[%emt 0:00:22]} 33. g3 {[%emt 0:02:49]} Re1+ {[%emt 0:00:30]} 34. Kg2 {[%emt 0:00:09]} Rb1 {[%emt 0:00:12]} 35. c3 {[%emt 0:00:08]} c5 {[%emt 0:00:30]} 36. Rd2 Kf5 37. d4 {[%emt 0:00:29]} cxd4 {[%emt 0:00:46]} 38. cxd4 {[%emt 0:00:08]} Ke6 {[%emt 0:00:24]} 39. d5+ {[%emt 0:01:12]} Kd6 {[%emt 0:00:06]} 40. Kf3 {[%emt 0:00:25]} Re1 {[%emt 0:00:09]} 41. Rd4 {[%emt 0:46:56]} Re5 {[%emt 0:32:38]} 42. Rg4 {[%emt 0:02:51]} g5 {[%emt 0:01:01]} 43. h4 {[%emt 0:01:13]} Kxd5 {[%emt 0:01:53]} 44. hxg5 {[%emt 0:00:20]} hxg5 {[%emt 0:00:11]} 45. a4 {[%emt 0:01:22]} Kc6 {[%emt 0:03:37]} 46. Re4 {[%emt 0:04:10]} Rxe4 {[%emt 0:06:26]} 47. Kxe4 {[%emt 0:00:32]} bxa4 {[%emt 0:00:07]} 48. Kf5 {[%emt 0:00:11]} Kb5 {[%emt 0:00:24]} 49. Kxg5 {[%emt 0:00:05]} Kb4 {[%emt 0:00:06]} 50. Kf5 {[%emt 0:00:13]} Kb3 {[%emt 0:00:06]} 51. g4 {[%emt 0:00:24]} Kxb2 {[%emt 0:00:07]} 52. g5 {[%emt 0:01:00]} a3 {[%emt 0:00:05]} 53. g6 {[%emt 0:00:06]} a2 {[%emt 0:00:04]} 54. g7 {[%emt 0:00:05]} a1=Q {[%emt 0:00:09]} 55. g8=Q {[%emt 0:00:05]} Qf1+ {[%emt 0:01:21]} 56. Ke5 {[%emt 0:00:20]} Qe2+ {[%emt 0:00:18]} 57. Kd4 {[%emt 0:01:35]} Qf2+ {[%emt 0:00:56]} 58. Kc4 {[%emt 0:01:29]} Ka3 {[%emt 0:01:31]} 59. Qb8 {[%emt 0:03:36]} Qf1+ {[%emt 0:00:38]} 60. Kc3 {[%emt 0:00:11]} Qf3+ {[%emt 0:01:11]} 61. Kc2 {[%emt 0:02:09]} Qe4+ {[%emt 0:01:07]} 62. Kd2 {[%emt 0:01:04]} a5 {[%emt 0:01:17]} 63. Kc1 {[%emt 0:01:10]} Qc4+ {[%emt 0:01:40]} 64. Kb1 {[%emt 0:02:41]} Qb4+ {[%emt 0:00:39]} 65. Qxb4+ {[%emt 0:00:07]} axb4 {[%emt 0:00:06]} 66. Ka1 {[%emt 0:00:07]} b3 {[%emt 0:00:04]} 67. Kb1 {[%emt 0:00:11]} b2 {[%emt 0:00:03]} 0-1

[Event "POR-ch Amateur 2018"]
[Site "Braga"]
[Date "2018.09.08"]
[Round "3"]
[White "Pinto, Andre Filipe Silva"]
[Black "Lomba, Lucas"]
[Result "0-1"]
[ECO "C50"]
[WhiteElo "2002"]
[BlackElo "1383"]
[PlyCount "64"]
[EventDate "2018.09.02"]
[EventType "tourn"]
[EventCountry "POR"]
[TimeControl "40/5400+30:1800+30"]
[WhiteClock "1:09:28"]
[BlackClock "1:02:39"]

1. e4 {[%emt 0:07:50]} e5 {[%emt 0:00:00]} 2. Nf3 {[%emt 0:00:32]} Nc6 {[%emt 0:00:00]} 3. Bc4 {[%emt 0:00:10]} Bc5 {[%emt 0:00:04]} 4. d3 {[%emt 0:00:31]} Nf6 {[%emt 0:00:26]} 5. O-O {[%emt 0:01:45]} O-O {[%emt 0:00:14]} 6. Nc3 {[%emt 0:00:27]} d6 {[%emt 0:00:13]} 7. h3 {[%emt 0:01:03]} Re8 {[%emt 0:02:28]} 8. Qe1 {[%emt 0:08:30]} Nd4 {[%emt 0:01:19]} 9. Nxd4 {[%emt 0:00:14]} Bxd4 {[%emt 0:00:06]} 10. Be3 {[%emt 0:00:09]} Bxe3 {[%emt 0:03:19]} 11. Qxe3 {[%emt 0:01:00]} Be6 {[%emt 0:00:19]} 12. Bb3 {[%emt 0:01:40]} d5 {[%emt 0:01:45]} 13. exd5 {[%emt 0:00:59]} Nxd5 {[%emt 0:00:32]} 14. Qxe5 {[%emt 0:01:22]} c6 {[%emt 0:04:54]} 15. Nxd5 {[%emt 0:01:21]} Bxd5 {[%emt 0:00:24]} 16. Qd4 {[%emt 0:01:12]} Bxb3 {[%emt 0:02:08]} 17. Qxd8 {[%emt 0:00:11]} Raxd8 {[%emt 0:00:12]} 18. axb3 {[%emt 0:00:08]} Re2 {[%emt 0:01:29]} 19. Rxa7 {[%emt 0:01:02]} Rxc2 {[%emt 0:00:09]} 20. Rxb7 {[%emt 0:00:06]} Rxb2 {[%emt 0:00:06]} 21. Rc1 {[%emt 0:02:20]} g6 {[%emt 0:01:31]} 22. Rxc6 {[%emt 0:02:21]} Rxd3 {[%emt 0:00:13]} 23. Rf6 {[%emt 0:00:51]} Rdxb3 {[%emt 0:02:23]} 24. Rbxf7 {[%emt 0:00:20]} Rb7 {[%emt 0:02:35]} 25. Rxb7 {[%emt 0:01:39]} Rxb7 {[%emt 0:00:08]} 26. g4 {[%emt 0:01:18]} Rb3 {[%emt 0:02:25]} 27. Kg2 {[%emt 0:00:56]} Kg7 {[%emt 0:00:13]} 28. g5 {[%emt 0:02:24]} h6 {[%emt 0:01:55]} 29. h4 {[%emt 0:00:08]} Rb5 {[%emt 0:00:22]} 30. f4 {[%emt 0:00:13]} Rb2+ {[%emt 0:00:56]} 31. Kf3 {[%emt 0:00:23]} Rb3+ {[%emt 0:02:24]} 32. Kg4 {[%emt 0:00:16]} h5# {[%emt 0:01:20]} 0-1

[Event "POR-ch Amateur 2018"]
[Site "Braga"]
[Date "2018.09.08"]
[Round "3"]
[White "Monteiro, Jose Macedo"]
[Black "Ribeiro, Rodrigo"]
[Result "1-0"]
[ECO "D02"]
[WhiteElo "1889"]
[BlackElo "1696"]
[PlyCount "71"]
[EventDate "2018.09.02"]
[EventType "tourn"]
[EventCountry "POR"]
[TimeControl "40/5400+30:1800+30"]
[WhiteClock "0:32:31"]
[BlackClock "0:48:05"]

1. d4 {[%emt 0:00:00]} d5 {[%emt 0:00:00]} 2. Nf3 {[%emt 0:00:00]} Bg4 {[%emt 0:00:00]} 3. Ne5 {[%emt 0:00:00]} Bf5 {[%emt 0:00:22]} 4. g4 {[%emt 0:00:06]} Be4 {[%emt 0:01:46]} 5. f3 {[%emt 0:00:30]} Bg6 {[%emt 0:00:08]} 6. h4 {[%emt 0:00:24]} f6 {[%emt 0:01:00]} 7. Nxg6 {[%emt 0:02:17]} hxg6 {[%emt 0:00:34]} 8. Qd3 {[%emt 0:00:11]} Qd6 {[%emt 0:07:12]} 9. Qxg6+ {[%emt 0:01:17]} Kd8 {[%emt 0:00:37]} 10. f4 {[%emt 0:04:45]} Qe6 {[%emt 0:06:28]} 11. g5 {[%emt 0:06:55]} Nd7 {[%emt 0:08:43]} 12. Bh3 {[%emt 0:01:22]} Qd6 {[%emt 0:01:28]} 13. Bg2 {[%emt 0:00:28]} Nb6 {[%emt 0:09:50]} 14. c3 {[%emt 0:09:19]} c6 {[%emt 0:07:25]} 15. e3 {[%emt 0:03:46]} Qe6 {[%emt 0:03:15]} 16. Bh3 {[%emt 0:03:07]} Qd6 {[%emt 0:00:29]} 17. Bg4 {[%emt 0:00:15]} Kc7 {[%emt 0:02:59]} 18. b3 {[%emt 0:02:09]} Rd8 {[%emt 0:03:45]} 19. Ba3 {[%emt 0:00:21]} c5 {[%emt 0:01:19]} 20. dxc5 {[%emt 0:00:18]} Qc6 {[%emt 0:00:08]} 21. cxb6+ {[%emt 0:00:21]} Qxb6 {[%emt 0:00:07]} 22. Kf2 {[%emt 0:04:13]} Qc6 {[%emt 0:03:31]} 23. Bf3 {[%emt 0:00:29]} Qb6 {[%emt 0:01:25]} 24. Qf7 {[%emt 0:02:24]} Qb5 {[%emt 0:01:46]} 25. c4 {[%emt 0:03:33]} Qb6 {[%emt 0:01:52]} 26. Bxd5 {[%emt 0:01:06]} Kb8 {[%emt 0:01:18]} 27. Nc3 {[%emt 0:04:04]} Qa5 {[%emt 0:00:34]} 28. Bb2 {[%emt 0:00:10]} Qb6 {[%emt 0:02:26]} 29. Rad1 {[%emt 0:00:54]} e5 {[%emt 0:01:26]} 30. Na4 {[%emt 0:01:20]} Qa6 {[%emt 0:00:40]} 31. Be6 {[%emt 0:01:15]} Qa5 {[%emt 0:01:35]} 32. Rxd8+ {[%emt 0:00:52]} Qxd8 {[%emt 0:00:09]} 33. Rd1 {[%emt 0:00:55]} Bd6 {[%emt 0:00:16]} 34. Rxd6 {[%emt 0:00:32]} Qxd6 {[%emt 0:00:18]} 35. Qe8+ {[%emt 0:00:08]} Kc7 {[%emt 0:00:08]} 36. Qc8# {[%emt 0:00:09]} 1-0

[Event "POR-ch Amateur 2018"]
[Site "Braga"]
[Date "2018.09.08"]
[Round "3"]
[White "Monteiro, Jose Macedo"]
[Black "Godinho Marques, Pedro"]
[Result "1-0"]
[ECO "B23"]
[WhiteElo "1889"]
[BlackElo "1853"]
[PlyCount "77"]
[EventDate "2018.09.02"]
[EventType "tourn"]
[EventCountry "POR"]
[TimeControl "40/5400+30:1800+30"]
[WhiteClock "0:00:31"]
[BlackClock "0:53:01"]

1. e4 {[%emt 0:00:00]} c5 {[%emt 0:00:00]} 2. Nc3 {[%emt 0:00:00]} Nc6 {[%emt 0:04:12]} 3. f4 {[%emt 0:00:27]} e6 {[%emt 0:02:07]} 4. Nf3 {[%emt 0:00:10]} a6 {[%emt 0:05:51]} 5. g3 {[%emt 0:03:55]} d5 {[%emt 0:11:10]} 6. Bg2 {[%emt 0:03:32]} Nf6 {[%emt 0:03:35]} 7. e5 {[%emt 0:00:15]} Nd7 {[%emt 0:02:00]} 8. O-O {[%emt 0:03:37]} b5 {[%emt 0:05:21]} 9. Ng5 {[%emt 0:04:03]} Ndxe5 {[%emt 0:09:50]} 10. d3 {[%emt 0:00:15]} Be7 {[%emt 0:03:20]} 11. fxe5 {[%emt 0:03:08]} Bxg5 {[%emt 0:00:29]} 12. Qh5 {[%emt 0:00:22]} Nxe5 {[%emt 0:19:42]} 13. Bxg5 {[%emt 0:02:04]} Qd7 {[%emt 0:05:52]} 14. Rae1 {[%emt 0:00:53]} Ng6 {[%emt 0:02:25]} 15. Nxd5 {[%emt 0:01:02]} Ra7 {[%emt 0:03:05]} 16. Nb6 {[%emt 0:15:36]} Qc7 {[%emt 0:01:46]} 17. Nxc8 Qxc8 {[%emt 0:00:06]} 18. Be3 {[%emt 0:03:51]} Rc7 {[%emt 0:00:51]} 19. c3 {[%emt 0:00:26]} O-O {[%emt 0:00:40]} 20. d4 {[%emt 0:00:28]} c4 {[%emt 0:03:16]} 21. Bf4 {[%emt 0:03:47]} Nxf4 {[%emt 0:03:18]} 22. Rxf4 {[%emt 0:00:34]} Qd7 {[%emt 0:02:05]} 23. Rh4 {[%emt 0:00:31]} h6 {[%emt 0:01:43]} 24. Qe5 {[%emt 0:02:01]} Qe7 {[%emt 0:04:23]} 25. Rg4 {[%emt 0:00:21]} g6 {[%emt 0:01:03]} 26. Rf4 {[%emt 0:00:33]} Re8 {[%emt 0:01:02]} 27. Qf6 {[%emt 0:00:51]} Qxf6 {[%emt 0:00:55]} 28. Rxf6 {[%emt 0:00:03]} Kg7 {[%emt 0:00:54]} 29. Rf2 {[%emt 0:00:20]} Rd8 {[%emt 0:01:22]} 30. Re5 {[%emt 0:00:33]} Rcd7 {[%emt 0:00:24]} 31. a3 {[%emt 0:00:17]} Rd6 {[%emt 0:00:19]} 32. Rc5 {[%emt 0:00:21]} R6d7 {[%emt 0:01:06]} 33. Re2 {[%emt 0:00:44]} Rd6 {[%emt 0:00:21]} 34. Rc7 {[%emt 0:00:31]} R8d7 {[%emt 0:00:17]} 35. Rxd7 {[%emt 0:00:12]} Rxd7 {[%emt 0:00:04]} 36. Re5 {[%emt 0:00:04]} Ra7 {[%emt 0:01:57]} 37. Rc5 {[%emt 0:00:23]} Kf6 {[%emt 0:00:45]} 38. Rc8 {[%emt 0:00:09]} a5 {[%emt 0:00:53]} 39. Ra8 {[%emt 0:00:10]} 1-0

[Event "POR-ch Amateur 2018"]
[Site "Braga"]
[Date "2018.09.08"]
[Round "3"]
[White "Carvalho, Vitor Hugo Pina Soa"]
[Black "Guimaraes, Henrique"]
[Result "0-1"]
[ECO "C54"]
[WhiteElo "1884"]
[BlackElo "1135"]
[PlyCount "70"]
[EventDate "2018.09.02"]
[EventType "tourn"]
[EventCountry "POR"]
[TimeControl "40/5400+30:1800+30"]

1. e4 e5 2. Nf3 Nc6 3. Bc4 Bc5 4. c3 Nf6 5. O-O d5 6. exd5 Nxd5 7. d4 exd4 8. cxd4 Bb4 9. a3 Ba5 10. b4 Bb6 11. Re1+ Be6 12. Bxd5 Qxd5 13. Bb2 O-O-O 14. Nc3 Qd7 15. Ne5 Qxd4 16. Qxd4 Nxd4 17. Rac1 Nb3 18. Rcd1 Rd2 19. Rxd2 Nxd2 20. Na4 Rd8 21. Nxb6+ axb6 22. Bc3 f6 23. Rd1 Nf3+ 24. Nxf3 Rxd1+ 25. Be1 Bd5 26. Kf1 Bxf3 27. gxf3 Rd3 28. a4 Rxf3 29. Kg2 Ra3 30. a5 bxa5 31. bxa5 Kd7 32. h4 c5 33. h5 h6 34. f3 c4 35. f4 c3 0-1

[Event "POR-ch Amateur 2018"]
[Site "Braga"]
[Date "2018.09.09"]
[Round "3"]
[White "Carvalho, Vitor Hugo Pina Soa"]
[Black "Da Silva, Pedro Vieira Prado"]
[Result "1/2-1/2"]
[ECO "E11"]
[WhiteElo "1884"]
[BlackElo "1521"]
[PlyCount "50"]
[EventDate "2018.09.02"]
[EventType "tourn"]
[EventCountry "POR"]
[TimeControl "40/5400+30:1800+30"]
[WhiteClock "0:18:40"]
[BlackClock "0:11:44"]

1. d4 {[%emt 0:01:04]} Nf6 {[%emt 0:00:00]} 2. c4 {[%emt 0:01:33]} e6 {[%emt 0:00:00]} 3. Nf3 {[%emt 0:01:13]} Bb4+ {[%emt 0:01:44]} 4. Bd2 {[%emt 0:00:57]} Bxd2+ {[%emt 0:00:11]} 5. Nbxd2 {[%emt 0:01:30]} O-O {[%emt 0:00:25]} 6. e3 {[%emt 0:03:40]} d5 {[%emt 0:02:06]} 7. Bd3 {[%emt 0:03:45]} Nbd7 {[%emt 0:05:25]} 8. b4 {[%emt 0:03:33]} b6 {[%emt 0:06:08]} 9. c5 {[%emt 0:02:53]} Bb7 {[%emt 0:09:33]} 10. Qc2 {[%emt 0:07:07]} c6 {[%emt 0:01:33]} 11. a4 {[%emt 0:02:32]} a6 {[%emt 0:02:43]} 12. O-O {[%emt 0:02:51]} bxc5 {[%emt 0:10:20]} 13. bxc5 {[%emt 0:06:37]} a5 {[%emt 0:02:55]} 14. Rab1 {[%emt 0:06:42]} Qc7 {[%emt 0:03:28]} 15. Qc3 {[%emt 0:05:05]} Rfb8 {[%emt 0:07:36]} 16. Rb3 {[%emt 0:01:53]} Ba6 {[%emt 0:03:11]} 17. Bxa6 {[%emt 0:07:13]} Rxa6 {[%emt 0:06:57]} 18. Rfb1 {[%emt 0:02:39]} Raa8 {[%emt 0:02:36]} 19. Rxb8+ {[%emt 0:05:38]} Nxb8 {[%emt 0:03:51]} 20. Ne5 {[%emt 0:07:31]} Na6 {[%emt 0:04:21]} 21. Nd3 {[%emt 0:01:52]} Kf8 {[%emt 0:04:00]} 22. Rb6 {[%emt 0:03:46]} Nd7 {[%emt 0:01:00]} 23. Rb3 {[%emt 0:02:23]} Nf6 {[%emt 0:02:06]} 24. Qb2 {[%emt 0:01:15]} Ra7 {[%emt 0:00:45]} 25. Nf3 {[%emt 0:05:34]} Nd7 {[%emt 0:00:56]} 1/2-1/2

[Event "POR-ch Amateur 2018"]
[Site "Braga"]
[Date "2018.09.09"]
[Round "3"]
[White "Godinho Marques, Pedro"]
[Black "Santos, Jose Miguel Sereno"]
[Result "1-0"]
[ECO "D00"]
[WhiteElo "1853"]
[BlackElo "1706"]
[PlyCount "93"]
[EventDate "2018.09.02"]
[EventType "tourn"]
[EventCountry "POR"]
[TimeControl "40/5400+30:1800+30"]

1. d4 d5 2. Bf4 Bf5 3. e3 Nf6 4. c4 c6 5. Qb3 Qc8 6. Nc3 dxc4 7. Bxc4 e6 8. Rc1 Nbd7 9. Nf3 Be7 10. a4 b6 11. O-O Qb7 12. Nd2 O-O 13. e4 Bg6 14. Rfe1 Rac8 15. Nf3 a6 16. Bg5 b5 17. e5 Nd5 18. Bxd5 Bxg5 19. Bxc6 Qxc6 20. axb5 axb5 21. Nxg5 Bd3 22. h3 Bc4 23. Qd1 h6 24. Nge4 Qb6 25. Nd6 Rc6 26. b3 Bd5 27. Ndxb5 Rfc8 28. Nxd5 Rxc1 29. Nxb6 Rxd1 30. Rxd1 Nxb6 31. Nd6 Rb8 32. Rc1 Nd5 33. Rc8+ Rxc8 34. Nxc8 Kf8 35. Kf1 f6 36. g3 Ke8 37. Ke2 Kd7 38. Nd6 f5 39. Kd3 g5 40. Nf7 f4 41. Nxh6 Nb4+ 42. Ke4 fxg3 43. fxg3 Nc2 44. Nf7 Na1 45. b4 Nc2 46. b5 Na3 47. Nd6 1-0